{"text_format":"2","workbook":"xlsx","n_sheets":2,"sheets":["Felolvasólap","Ártábla"],"not_rendered":{"charts":0,"images":0,"macros":0,"external_links":0,"defined_names":0,"comments":0,"pivot_tables":0},"unopened":[],"bounds":{"document_bytes":16777216,"sheet_cells":100000,"run_cost":"one","rows_first":2000,"rows_last":500,"rows_between":2000,"halvings":0,"cell_chars":16384,"cell_head_chars":4096},"cells_cut":0,"cells_raw":0,"read":"whole","date_system":"1900"}

{"sheet":"Felolvasólap","index":0,"n_rows":48,"n_cols":5,"rows_kept":48,"cut":false,"hidden":false,"merged":[[46,0,46,3],[47,0,47,3],[45,0,45,3],[44,0,44,4],[0,0,0,4],[1,0,1,4],[11,0,11,4],[12,0,12,1]]}
["Felolvasólap"]
["Alulírott Ajánlattevő, az ajánlattételi felhívás részletes áttanulmányozását követően, annak feltételeit elfogadva, az alábbi ajánlatot teszem a Szegedi Tudományegyetem által indított „Egészségügyi textíliák beszerzése” tárgyú közbeszerzési eljárásban:"]
[null,"Ajánlattevő neve:"]
[null,"Székhelye:"]
[null,"Képviselő neve:"]
[null,"Adószáma:"]
[null,"Cégjegyzékszáma:"]
[null,"Bankszámlaszáma:"]
[null,"Közös ajánlattevő neve:"]
[null,"Közös ajánlattevő székhelye:"]
[]
["Ajánlati ár Ft-ban (36 hónapra)*"]
["Részajánlati kör",null,"Nettó ár","ÁFA mértéke","Bruttó ár"]
["1.","Beteging (női)",{"$f":"Ártábla!H3","v":0},0.27,{"$f":"Ártábla!J3","v":0}]
["2.","Pizsama  nadrág felnőtt  (férfi)",{"$f":"Ártábla!H7","v":0},0.27,{"$f":"Ártábla!J7","v":0}]
["3.","Pizsama  kabát felnőtt  (férfi)",{"$f":"Ártábla!H11","v":0},0.27,{"$f":"Ártábla!J11","v":0}]
["4.","Pizsama  nadrág (gyermek)",{"$f":"Ártábla!H15","v":0},0.27,{"$f":"Ártábla!J15","v":0}]
["5.","Pizsama  kabát (gyermek)",{"$f":"Ártábla!H19","v":0},0.27,{"$f":"Ártábla!J19","v":0}]
["6.","Műtős köpeny zöld",{"$f":"Ártábla!H24","v":0},0.27,{"$f":"Ártábla!J24","v":0}]
["7.","Műtős köpeny kék",{"$f":"Ártábla!H29","v":0},0.27,{"$f":"Ártábla!J29","v":0}]
["8.","Műtős ing zöld",{"$f":"Ártábla!H34","v":0},0.27,{"$f":"Ártábla!J34","v":0}]
["9.","Műtős nadrág zöld",{"$f":"Ártábla!H39","v":0},0.27,{"$f":"Ártábla!J39","v":0}]
["10.","Műtős ing kék",{"$f":"Ártábla!H44","v":0},0.27,{"$f":"Ártábla!J44","v":0}]
["11.","Műtős nadrág kék",{"$f":"Ártábla!H49","v":0},0.27,{"$f":"Ártábla!J49","v":0}]
["12.","Műtős ing türkiz",{"$f":"Ártábla!H54","v":0},0.27,{"$f":"Ártábla!J54","v":0}]
["13.","Műtős nadrág türkiz",{"$f":"Ártábla!H59","v":0},0.27,{"$f":"Ártábla!J59","v":0}]
["14.","Műtős nadrág fehér",{"$f":"Ártábla!H64","v":0},0.27,{"$f":"Ártábla!J64","v":0}]
["15.","Műtős ing fehér",{"$f":"Ártábla!H68","v":0},0.27,{"$f":"Ártábla!J68","v":0}]
["16.","Lepedő kicsi zöld",{"$f":"Ártábla!H73","v":0},0.27,{"$f":"Ártábla!J73","v":0}]
["17.","Lepedő nagy zöld",{"$f":"Ártábla!H77","v":0},0.27,{"$f":"Ártábla!J77","v":0}]
["18.","Borogató zöld",{"$f":"Ártábla!H81","v":0},0.27,{"$f":"Ártábla!J81","v":0}]
["19.","Lepedő kicsi kék",{"$f":"Ártábla!H85","v":0},0.27,{"$f":"Ártábla!J85","v":0}]
["20.","Lepedő nagy kék",{"$f":"Ártábla!H89","v":0},0.27,{"$f":"Ártábla!J89","v":0}]
["21.","Borogató kék",{"$f":"Ártábla!H93","v":0},0.27,{"$f":"Ártábla!J93","v":0}]
["22.","Párnahuzat nagy, egyedi beszövéssel",{"$f":"Ártábla!H98","v":0},0.27,{"$f":"Ártábla!J98","v":0}]
["23.","Takaróhuzat nagy, egyedi beszövéssel",{"$f":"Ártábla!H104","v":0},0.27,{"$f":"Ártábla!J104","v":0}]
["24.","Lepedő nagy, fehér, egyedi beszövéssel",{"$f":"Ártábla!H111","v":0},0.27,{"$f":"Ártábla!J111","v":0}]
["25.","Fehér köpeny női",{"$f":"Ártábla!H117","v":0},0.27,{"$f":"Ártábla!J117","v":0}]
["26.","Fehér ruha",{"$f":"Ártábla!H121","v":0},0.27,{"$f":"Ártábla!J121","v":0}]
["27.","Nővér tunika",{"$f":"Ártábla!H125","v":0},0.27,{"$f":"Ártábla!J125","v":0}]
["28.","Nővér nadrág",{"$f":"Ártábla!H129","v":0},0.27,{"$f":"Ártábla!J129","v":0}]
["29.","Fehér köpeny férfi",{"$f":"Ártábla!H133","v":0},0.27,{"$f":"Ártábla!J133","v":0}]
["30.","Orvosi nadrág",{"$f":"Ártábla!H137","v":0},0.27,{"$f":"Ártábla!J137","v":0}]
["31.","Orvosi ing",{"$f":"Ártábla!H141","v":0},0.27,{"$f":"Ártábla!J141","v":0}]
["*Ajánlattevőnek árfolyamkockázattól mentes, fix árajánlatot kell adnia magyar Forintban!\n\nAjánlatom …….… számozott oldalt tartalmaz."]
["Kelt: …………………….., 2017. ………………… …..      ......................................."]
["……………………………………………."]
["ajánlattevő cégszerű aláírása"]

{"sheet":"Ártábla","index":1,"n_rows":144,"n_cols":10,"rows_kept":144,"cut":false,"hidden":false,"merged":[[136,8,139,8],[136,9,139,9],[140,0,143,0],[140,1,143,1],[140,5,143,5],[140,6,143,6],[140,7,143,7],[140,8,143,8],[140,9,143,9],[136,0,139,0],[136,1,139,1],[136,5,139,5],[136,6,139,6],[136,7,139,7],[128,8,131,8],[128,9,131,9],[132,0,135,0],[132,1,135,1],[132,5,135,5],[132,6,135,6],[132,7,135,7],[132,8,135,8],[132,9,135,9],[128,0,131,0],[128,1,131,1],[128,5,131,5],[128,6,131,6],[128,7,131,7],[120,8,123,8],[120,9,123,9],[124,0,127,0],[124,1,127,1],[124,5,127,5],[124,6,127,6],[124,7,127,7],[124,8,127,8],[124,9,127,9],[120,0,123,0],[120,1,123,1],[120,5,123,5],[120,6,123,6],[120,7,123,7],[115,1,115,9],[116,0,119,0],[116,1,119,1],[116,5,119,5],[116,6,119,6],[116,7,119,7],[116,8,119,8],[116,9,119,9],[103,7,109,7],[103,8,109,8],[103,9,109,9],[110,0,114,0],[110,1,114,1],[110,2,114,2],[110,5,114,5],[110,6,114,6],[110,7,114,7],[110,8,114,8],[110,9,114,9],[103,0,109,0],[103,1,109,1],[103,2,109,2],[103,5,109,5],[103,6,109,6],[96,1,96,9],[97,0,102,0],[97,1,102,1],[97,2,102,2],[97,5,102,5],[97,6,102,6],[97,7,102,7],[97,8,102,8],[97,9,102,9],[92,7,95,7],[92,8,95,8],[71,1,71,9],[72,2,75,2],[72,9,75,9],[76,2,79,2],[76,9,79,9],[80,2,83,2],[80,9,83,9],[84,2,87,2],[84,9,87,9],[88,2,91,2],[88,9,91,9],[92,2,95,2],[92,9,95,9],[84,7,87,7],[84,8,87,8],[88,7,91,7],[88,8,91,8],[72,0,75,0],[72,1,75,1],[72,5,75,5],[72,6,75,6],[72,7,75,7],[72,8,75,8],[76,0,79,0],[76,1,79,1],[76,5,79,5],[76,6,79,6],[76,7,79,7],[76,8,79,8],[80,7,83,7],[80,8,83,8],[92,0,95,0],[92,1,95,1],[92,5,95,5],[92,6,95,6],[80,0,83,0],[80,1,83,1],[80,5,83,5],[80,6,83,6],[84,0,87,0],[84,1,87,1],[84,5,87,5],[84,6,87,6],[88,0,91,0],[88,1,91,1],[88,5,91,5],[88,6,91,6],[67,8,70,8],[67,9,70,9],[67,0,70,0],[67,1,70,1],[67,5,70,5],[67,6,70,6],[67,7,70,7],[58,8,62,8],[58,9,62,9],[63,0,66,0],[63,1,66,1],[63,5,66,5],[63,6,66,6],[63,7,66,7],[63,8,66,8],[63,9,66,9],[58,0,62,0],[58,1,62,1],[58,5,62,5],[58,6,62,6],[58,7,62,7],[48,8,52,8],[48,9,52,9],[53,0,57,0],[53,1,57,1],[53,5,57,5],[53,6,57,6],[53,7,57,7],[53,8,57,8],[53,9,57,9],[48,0,52,0],[48,1,52,1],[48,5,52,5],[48,6,52,6],[48,7,52,7],[38,8,42,8],[38,9,42,9],[43,0,47,0],[43,1,47,1],[43,5,47,5],[43,6,47,6],[43,7,47,7],[43,8,47,8],[43,9,47,9],[38,0,42,0],[38,1,42,1],[38,5,42,5],[38,6,42,6],[38,7,42,7],[28,8,32,8],[28,9,32,9],[33,0,37,0],[33,1,37,1],[33,5,37,5],[33,6,37,6],[33,7,37,7],[33,8,37,8],[33,9,37,9],[28,0,32,0],[28,1,32,1],[28,5,32,5],[28,6,32,6],[28,7,32,7],[22,1,22,9],[23,0,27,0],[23,1,27,1],[23,5,27,5],[23,6,27,6],[23,7,27,7],[23,8,27,8],[23,9,27,9],[1,3,1,4],[6,8,9,8],[10,8,13,8],[14,5,17,5],[14,6,17,6],[14,7,17,7],[14,8,17,8],[18,8,21,8],[18,0,21,0],[2,0,5,0],[6,0,9,0],[10,0,13,0],[14,0,17,0],[0,1,0,9],[2,8,5,8],[2,1,5,1],[6,1,9,1],[10,1,13,1],[14,1,17,1],[18,1,21,1],[14,9,17,9],[18,9,21,9],[6,9,9,9],[10,9,13,9],[2,5,5,5],[2,6,5,6],[2,9,5,9],[18,5,21,5],[2,7,5,7],[10,7,13,7],[18,6,21,6],[18,7,21,7],[6,5,9,5],[6,6,9,6],[6,7,9,7],[10,5,13,5],[10,6,13,6]]}
[null,"1. csoport: Betegellátotti  textília"]
["Rész-ajánlati kör","Megnevezés","Méret","Specifikáció",null,"Mennyiség összesen db.","Nettó egységár (Ft/db)","Nettó összesen ár (Ft)","ÁFA  mértéke","Bruttó öszesen ár (Ft)"]
["1.","Beteging (női)","egyeztetés  ","alapanyaga:  MSZ ENV 14237:2003 szerinti  100%  Pam .,",null,2200,null,{"$f":"G3*F3","v":0},0.27,{"$f":"H3*(1+I3)","v":0}]
[null,null,"szállítás  ",null," négyzetméter  súly: 150 - 160 g/m2, Szakítóerő (N) lánc: min.490, vetülék: min. 430"]
[null,null,"előtt",null," - méretállandó,  fertőtlenítő  mosásálló."]
[null,null,null,"Konfekcionálás: műszaki leírás alapján."]
["2.","Pizsama  nadrág felnőtt  (férfi)","egyeztetés  ","alapanyaga: MSZ ENV 14237:2003  szerinti  100%  Pam .,mintás",null,250,null,{"$f":"G7*F7","v":0},0.27,{"$f":"H7*(1+I7)","v":0}]
[null,null,"szállítás  ",null," - méretállandó, színtartó, fertőtlenítő  mosásálló."]
[null,null,"előtt",null," négyzetméter  súly: 140 - 150 g/m2, Szakítóerő (N) lánc: min. 530, vetülék: min. 360 "]
[null,null,null,"Konfekcionálás: műszaki leírás alapján."]
["3.","Pizsama  kabát felnőtt  (férfi)","egyeztetés  ","alapanyaga:  MSZ ENV 14237:2003 szerinti  100%  Pam.,mintás",null,250,null,{"$f":"G11*F11","v":0},0.27,{"$f":"H11*(1+I11)","v":0}]
[null,null,"szállítás  ",null," - méretállandó, színtartó, fertőtlenítő  mosásálló."]
[null,null,"előtt",null," négyzetméter  súly: 140 - 150 g/m2, Szakítóerő (N) lánc: min. 530, vetülék: min. 360 "]
[null,null,null,"Konfekcionálás: műszaki leírás alapján."]
["4.","Pizsama  nadrág (gyermek)","egyeztetés  ","alapanyaga: MSZ ENV 14237:2003 szerinti  100%  Pam,mintás",null,100,null,{"$f":"G15*F15","v":0},0.27,{"$f":"H15*(1+I15)","v":0}]
[null,null,"szállítás  ",null," - méretállandó, színtartó, fertőtlenítő  mosásálló."]
[null,null,"előtt",null," négyzetméter  súly: 140 - 150 g/m2, Szakítóerő (N) lánc: min. 530, vetülék: min. 360 "]
[null,null,null,"Konfekcionálás: műszaki leírás alapján."]
["5.","Pizsama  kabát (gyermek)","egyeztetés  ","alapanyaga: MSZ ENV 14237:2003 szerinti  100%  Pam, mintás",null,100,null,{"$f":"G19*F19","v":0},0.27,{"$f":"H19*(1+I19)","v":0}]
[null,null,"szállítás  ",null," - méretállandó, színtartó, fertőtlenítő  mosásálló."]
[null,null,"előtt",null," négyzetméter  súly: 140 - 150 g/m2, Szakítóerő (N) lánc: min. 530, vetülék: min. 360 "]
[null,null,null,"Konfekcionálás: műszaki leírás alapján."]
[null,"2. csoport: Műtéti ruházat"]
["6.","Műtős köpeny zöld","egyeztetés  ","alapanyaga:  100%  Pamut. ",null,500,null,{"$f":"F24*G24","v":0},0.27,{"$f":"H24*(1+I24)","v":0}]
[null,null,"szállítás  ",null,"     négyzetméter  súly:  200  g/m2, Szakítóerő (N) lánc: min. 580, vetülék: min. 510"]
[null,null,"előtt",null,"     - színkód:  17-6153"]
[{"$nulls":4}," - méretállandó, színtartó, fertőtlenítő  mosásálló."]
[null,null,null,"Konfekcionálás: műszaki leírás alapján."]
["7.","Műtős köpeny kék","egyeztetés  ","alapanyaga:  100%  Pamut. ",null,100,null,{"$f":"F29*G29","v":0},0.27,{"$f":"H29*(1+I29)","v":0}]
[null,null,"szállítás  ",null,"     négyzetméter  súly:  200  g/m2, Szakítóerő (N) lánc: min. 580, vetülék: min. 510"]
[null,null,"előtt",null,"     - színkód:  16-4132"]
[{"$nulls":4}," - méretállandó, színtartó, fertőtlenítő  mosásálló."]
[null,null,null,"Konfekcionálás : előzetesen egyeztetett minta alapján"]
["8.","Műtős ing zöld","egyeztetés  ","alapanyaga:  100%  Pamut. ",null,1100,null,{"$f":"F34*G34","v":0},0.27,{"$f":"H34*(1+I34)","v":0}]
[null,null,"szállítás  ",null,"négyzetméter  súly:  150 - 160  g/m2, Szakítóerő (N) lánc: min. 570, vetülék: min. 400"]
[null,null,"előtt",null,"     - színkód:  17-6153"]
[{"$nulls":4}," - méretállandó, színtartó, fertőtlenítő  mosásálló."]
[null,null,null,"Konfekcionálás: műszaki leírás alapján."]
["9.","Műtős nadrág zöld","egyeztetés  ","alapanyaga: 100%  Pamut.  ",null,1100,null,{"$f":"F39*G39","v":0},0.27,{"$f":"H39*(1+I39)","v":0}]
[null,null,"szállítás  ",null,"négyzetméter  súly:  150 - 160  g/m2, Szakítóerő (N) lánc: min. 570, vetülék: min. 400"]
[null,null,"előtt",null,"     - színkód:  17-6153"]
[{"$nulls":4}," - méretállandó, színtartó, fertőtlenítő  mosásálló."]
[null,null,null,"Konfekcionálás: műszaki leírás alapján."]
["10.","Műtős ing kék","egyeztetés  ","alapanyaga: 100%  Pamut. ",null,150,null,{"$f":"F44*G44","v":0},0.27,{"$f":"H44*(1+I44)","v":0}]
[null,null,"szállítás  ",null,"négyzetméter  súly:  150 - 160  g/m2, Szakítóerő (N) lánc: min. 570, vetülék: min. 400"]
[null,null,"előtt",null,"     - színkód:  16-4132"]
[{"$nulls":4}," - méretállandó, színtartó, fertőtlenítő  mosásálló."]
[null,null,null,"Konfekcionálás: műszaki leírás alapján."]
["11.","Műtős nadrág kék","egyeztetés  ","alapanyaga:  100%  Pamut.  ",null,150,null,{"$f":"F49*G49","v":0},0.27,{"$f":"H49*(1+I49)","v":0}]
[null,null,"szállítás  ",null,"négyzetméter  súly:  150 - 160  g/m2, Szakítóerő (N) lánc: min. 570, vetülék: min. 400"]
[null,null,"előtt",null,"     - színkód:  16-4132"]
[{"$nulls":4}," - méretállandó, színtartó, fertőtlenítő  mosásálló."]
[null,null,null,"Konfekcionálás: műszaki leírás alapján."]
["12.","Műtős ing türkiz","egyeztetés  ","alapanyaga:  100%  Pamut. ",null,250,null,{"$f":"F54*G54","v":0},0.27,{"$f":"H54*(1+I54)","v":0}]
[null,null,"szállítás  ",null,"négyzetméter  súly:  150 - 160  g/m2, Szakítóerő (N) lánc: min. 570, vetülék: min. 400"]
[null,null,"előtt",null,"  - színkód:  14-4816"]
[{"$nulls":4}," - méretállandó, színtartó, fertőtlenítő  mosásálló."]
[null,null,null,"Konfekcionálás: műszaki leírás alapján."]
["13.","Műtős nadrág türkiz","egyeztetés  ","alapanyaga: 100%  Pamut.  ",null,250,null,{"$f":"F59*G59","v":0},0.27,{"$f":"H59*(1+I59)","v":0}]
[null,null,"szállítás  ",null,"négyzetméter  súly:  150 - 160  g/m2, Szakítóerő (N) lánc: min. 570, vetülék: min. 400"]
[null,null,"előtt",null,"  - színkód:  14-4816"]
[{"$nulls":4}," - méretállandó, színtartó, fertőtlenítő  mosásálló."]
[null,null,null,"Konfekcionálás: műszaki leírás alapján."]
["14.","Műtős nadrág fehér","egyeztetés  ","alapanyaga: 100%  Pamut, sávolykötés",null,2500,null,{"$f":"F64*G64","v":0},0.27,{"$f":"H64*(1+I64)","v":0}]
[null,null,"szállítás  ",null,"négyzetméter  súly:  185 g/m2, Szakítóerő (N) lánc: min. 1060, vetülék: min. 530"]
[null,null,"előtt",null," - méretállandó, fertőtlenítő  mosásálló."]
[null,null,null,"Konfekcionálás: műszaki leírás alapján."]
["15.","Műtős ing fehér","egyeztetés  ","alapanyaga: MSZ EVN 14237:2003 szerinti 100%  Pamut, sávolykötés",null,2500,null,{"$f":"F68*G68","v":0},0.27,{"$f":"H68*(1+I68)","v":0}]
[null,null,"szállítás  ",null,"négyzetméter  súly:  185 g/m2, Szakítóerő (N) lánc: min. 1060, vetülék: min. 530"]
[null,null,"előtt",null," - méretállandó,fertőtlenítő  mosásálló."]
[null,null,null,"Konfekcionálás: műszaki leírás alapján."]
[null,"3. csoport: Műtéti textíliák"]
["16.","Lepedő kicsi zöld","100 x 140 cm.","alapanyaga: 100%  Pamut. 198 - 200  g/m2, Szakítóerő (N) lánc: min. 570, vetülék: min. 510",null,100,null,{"$f":"F73*G73","v":0},0.27,{"$f":"H73*(1+I73)","v":0}]
[null,null,null,"  - kék színnel filmnyomott. SZTE Klinikai Központ Szeged. Gyártási év."]
[{"$nulls":4}," - méretállandó, színtartó, fertőtlenítő  mosásálló."]
[{"$nulls":4}," - színkód:  17-6153"]
["17.","Lepedő nagy zöld","230x150 cm.","alapanyaga: 100%  Pamut. 198 - 200  g/m2, Szakítóerő (N) lánc: min. 570, vetülék: min. 510",null,1200,null,{"$f":"F77*G77","v":0},0.27,{"$f":"H77*(1+I77)","v":0}]
[null,null,null,"  - kék színnel filmnyomott. SZTE Klinikai Központ Szeged. Gyártási év."]
[{"$nulls":4}," - méretállandó, színtartó, fertőtlenítő  mosásálló."]
[{"$nulls":4}," - színkód:  17-6153"]
["18.","Borogató zöld","75 x 75 cm","alapanyaga: 100%  Pamut. 198 - 200  g/m2, Szakítóerő (N) lánc: min. 570, vetülék: min. 510",null,1000,null,{"$f":"F81*G81","v":0},0.27,{"$f":"H81*(1+I81)","v":0}]
[null,null,null,"  - kék színnel filmnyomott. SZTE Klinikai Központ Szeged. Gyártási év."]
[{"$nulls":4}," - méretállandó, színtartó, fertőtlenítő  mosásálló."]
[{"$nulls":4}," - színkód:  17-6153"]
["19.","Lepedő kicsi kék","100 x 140 cm.","alapanyaga: 100%  Pamut. 198 - 200  g/m2, Szakítóerő (N) lánc: min. 570, vetülék: min. 510",null,100,null,{"$f":"F85*G85","v":0},0.27,{"$f":"H85*(1+I85)","v":0}]
[null,null,null,"  - kék színnel filmnyomott. SZTE Klinikai Központ Szeged. Gyártási év."]
[{"$nulls":4}," - méretállandó, színtartó, fertőtlenítő  mosásálló."]
[{"$nulls":4}," - színkód:  16-4132"]
["20.","Lepedő nagy kék","230x150 cm.","alapanyaga: 100%  Pamut. 198 - 200  g/m2, Szakítóerő (N) lánc: min. 570, vetülék: min. 510",null,200,null,{"$f":"F89*G89","v":0},0.27,{"$f":"H89*(1+I89)","v":0}]
[null,null,null,"  - kék színnel filmnyomott. SZTE Klinikai Központ Szeged. Gyártási év."]
[{"$nulls":4}," - méretállandó, színtartó, fertőtlenítő  mosásálló."]
[{"$nulls":4}," - színkód:  16-4132"]
["21.","Borogató kék","75 x 75 cm","alapanyaga: 100%  Pamut. 198 - 200  g/m2, Szakítóerő (N) lánc: min. 570, vetülék: min. 510",null,100,null,{"$f":"F93*G93","v":0},0.27,{"$f":"H93*(1+I93)","v":0}]
[null,null,null,"  - kék színnel filmnyomott. SZTE Klinikai Központ Szeged. Gyártási év."]
[{"$nulls":4}," - méretállandó, színtartó, fertőtlenítő  mosásálló."]
[{"$nulls":4}," - színkód:  16-4132"]
[null,"4. csoport: Betegellátotti textília egyedi beszövéssel"]
["22."," Párnahuzat nagy, egyedi beszövéssel.","70 x 90  cm","alapanyaga: MSZ ENV 14237:2003 szerinti 100% Pam, négyzetméter súly: 160-170g/m2",null,4500,null,{"$f":"F98*G98","v":0},0.27,{"$f":"H98*(1+I98)","v":0}]
[{"$nulls":4},"Beszövés lila színnel."]
[{"$nulls":4},"Színkód 18-3737. Szakítóerő (N) lánc: min. 560, vetülék: min. 360"]
[{"$nulls":4}," méretállandó, beszövés színtartó, fertőtlenítő  mosásálló."]
[null,null,null,"Beszövés  szövege:  SZTE  KLINIKAI  KÖZPONT  SZEGED \" GYÁRTÁSI  ÉV \""]
[{"$nulls":4},"Konfekcionálás:  bújtatós  ( bújtatója:  30  cm )"]
["23."," Takaróhuzat nagy, egyedi beszövéssel.","200 x 140  cm","alapanyaga: MSZ ENV 14237:2003  szerinti 100% Pam, négyzetméter súly:160-170g/m2",null,3500,null,{"$f":"F104*G104","v":0},0.27,{"$f":"H104*(1+I104)","v":0}]
[null,null,null,"Beszövés  láncirányban, (két csíkban) folyamatosan  ismétlődve,"]
[{"$nulls":4},"Beszövés lila színnel."]
[{"$nulls":4}," Színkód 18-3737. Szakítóerő (N) lánc: min. 560, vetülék: min. 360"]
[{"$nulls":4}," - méretállandó, beszövés színtartó, fertőtlenítő  mosásálló."]
[null,null,null,"Beszövés  szövege:  SZTE  KLINIKAI  KÖZPONT  SZEGED \" GYÁRTÁSI  ÉV \""]
[{"$nulls":4},"Konfekcionálás:  bújtatós  ( bújtatója:  30  cm )"]
["24."," Lepedő nagy, fehér, egyedi beszövéssel.","260 x 150  cm","alapanyaga:MSZ ENV 14237:2003  szerinti 100% Pam, négyzetméter  súly: 200  g/m2",null,5000,null,{"$f":"F111*G111","v":0},0.27,{"$f":"H111*(1+I111)","v":0}]
[null,null,null,"Beszövés  láncirányban, (két  csíkban) folyamatosan  ismétlődve,  "]
[{"$nulls":4},"  Kék színnel. Színkód 18-4039, Szakítóerő (N) lánc: min. 670, vetülék: min. 480"]
[{"$nulls":4}," - méretállandó, beszövés színtartó, fertőtlenítő  mosásálló."]
[null,null,null,"Beszövés  szövege:  SZTE  KLINIKAI  KÖZPONT  SZEGED \" GYÁRTÁSI  ÉV \""]
[null,"5. csoport: Védőruházat"]
["25.","Fehér köpeny női","egyeztetés  ","alapanyaga:  MSZ ENV 14237:2003 szerinti 100%  Pamut, sávolykötés ",null,250,null,{"$f":"F117*G117","v":0},0.27,{"$f":"H117*(1+I117)","v":0}]
[null,null,"szállítás  ",null,"négyzetméter  súly: 185 g/m2, Szakítóerő (N) lánc: min. 1060, vetülék: min. 530"]
[null,null,"előtt",null," - méretállandó,  fertőtlenítő  mosásálló."]
[null,null,null,"Konfekcionálás: műszaki leírás alapján."]
["26.","Fehér ruha","egyeztetés  ","alapanyaga:  MSZ ENV 14237:2003 szerinti 100%  Pamut, sávolykötés ",null,150,null,{"$f":"F121*G121","v":0},0.27,{"$f":"H121*(1+I121)","v":0}]
[null,null,"szállítás  ",null,"négyzetméter  súly: 185 g/m2, Szakítóerő (N) lánc: min. 1060, vetülék: min. 530"]
[null,null,"előtt",null," - méretállandó,  fertőtlenítő  mosásálló."]
[null,null,null,"Konfekcionálás: műszaki leírás alapján."]
["27.","Nővér tunika","egyeztetés  ","alapanyaga:  MSZ ENV 14237:2003 szerinti 100%  Pamut, sávolykötés",null,400,null,{"$f":"F125*G125","v":0},0.27,{"$f":"H125*(1+I125)","v":0}]
[null,null,"szállítás  ",null,"négyzetméter  súly: 185 g/m2, Szakítóerő (N) lánc: min. 1060, vetülék: min. 530"]
[null,null,"előtt",null," - méretállandó,  fertőtlenítő  mosásálló."]
[null,null,null,"Konfekcionálás: műszaki leírás alapján."]
["28.","Nővér nadrág","egyeztetés  ","alapanyaga:  MSZ ENV 14237:2003 szerinti 100%  Pamut, sávolykötés",null,400,null,{"$f":"F129*G129","v":0},0.27,{"$f":"H129*(1+I129)","v":0}]
[null,null,"szállítás  ",null,"négyzetméter  súly: 185 g/m2, Szakítóerő (N) lánc: min. 1060, vetülék: min. 530"]
[null,null,"előtt",null," - méretállandó,  fertőtlenítő  mosásálló."]
[null,null,null,"Konfekcionálás: műszaki leírás alapján."]
["29.","Fehér köpeny férfi","egyeztetés  ","alapanyaga:  MSZ ENV 14237:2003 szerinti 100%  Pamut, sávolykötés ",null,250,null,{"$f":"F133*G133","v":0},0.27,{"$f":"H133*(1+I133)","v":0}]
[null,null,"szállítás  ",null,"négyzetméter  súly: 185 g/m2, Szakítóerő (N) lánc: min. 1060, vetülék: min. 530"]
[null,null,"előtt",null," - méretállandó,  fertőtlenítő  mosásálló."]
[null,null,null,"Konfekcionálás: műszaki leírás alapján."]
["30.","Orvosi nadrág","egyeztetés  ","alapanyaga:  MSZ ENV 14237:2003 szerinti 100%  Pamut, sávolykötés ",null,350,null,{"$f":"F137*G137","v":0},0.27,{"$f":"H137*(1+I137)","v":0}]
[null,null,"szállítás  ",null,"négyzetméter  súly: 185 g/m2, Szakítóerő (N) lánc: min. 1060, vetülék: min. 530"]
[null,null,"előtt",null," - méretállandó,  fertőtlenítő  mosásálló."]
[null,null,null,"Konfekcionálás: műszaki leírás alapján."]
["31.","Orvosi ing","egyeztetés  ","alapanyaga:  MSZ ENV 14237:2003 szerinti 100%  Pamut.",null,350,null,{"$f":"F141*G141","v":0},0.27,{"$f":"H141*(1+I141)","v":0}]
[null,null,"szállítás  ",null," négyzetméter  súly:150-160 g/m2, Szakítóerő (N) lánc: min.490, vetülék: min. 430"]
[null,null,"előtt",null," - méretállandó,  fertőtlenítő  mosásálló."]
[null,null,null,"Konfekcionálás: műszaki leírás alapján."]